bitfinex-derivatives/quotes_BTCF0:USTF0_20250504
["timestamp","ask_amount","ask_price","bid_price","bid_amount"]
[1746377838029,0.122,95322.0,95321.0,0.74006369]
[1746377839338,0.122,95322.0,95321.0,0.70916369]
[1746377839637,0.122,95322.0,95321.0,0.38916369]
[1746377840441,0.122,95322.0,95321.0,0.34368042]
[1746377840839,0.122,95322.0,95321.0,0.38916904]
[1746377841233,0.122,95322.0,95321.0,0.34368042]
[1746377841439,0.122,95322.0,95321.0,0.3891693]
[1746377846459,0.132,95322.0,95321.0,0.3891693]
[1746377846638,0.122,95322.0,95321.0,0.3891693]
[1746377847037,0.172,95322.0,95321.0,0.3568693]
[1746377847237,0.122,95322.0,95321.0,0.3568693]
[1746377848840,0.162,95322.0,95321.0,0.3568693]
[1746377849447,0.122,95322.0,95321.0,0.3568693]
[1746377853650,0.152,95322.0,95321.0,0.3568693]
[1746377853947,0.122,95322.0,95321.0,0.3568693]
[1746377854744,0.122,95322.0,95321.0,0.6568693]
[1746377855245,0.122,95322.0,95321.0,0.6881693]
[1746377856842,0.122,95322.0,95321.0,0.47678888]
[1746377857650,0.122,95322.0,95321.0,0.68659568]
[1746377858450,0.122,95322.0,95321.0,0.70659568]
[1746377866948,0.122,95322.0,95321.0,0.38659568]
[1746377872869,0.122,95322.0,95321.0,0.40659568]
[1746377874879,0.122,95322.0,95321.0,0.38659568]
[1746377875879,0.122,95322.0,95321.0,0.71659568]
[1746377900699,0.2097634,95341.0,95329.0,0.0524467]
[1746377900889,0.0328,95333.0,95332.0,0.2097826]
[1746377901094,0.1508,95333.0,95332.0,0.7397826]
[1746377902202,0.1827,95333.0,95332.0,0.7397826]
[1746377902403,0.1837,95333.0,95332.0,0.7417826]
[1746377902592,0.1847,95333.0,95332.0,0.7417826]
[1746377903401,0.1519,95333.0,95332.0,0.8063826]
[1746377903797,0.1519,95333.0,95332.0,0.85186862]
[1746377904303,0.1519,95333.0,95332.0,0.8063826]
[1746377906001,0.1519,95333.0,95332.0,0.82182636]
[1746377911095,0.1519,95333.0,95332.0,0.82193901]
[1746377911299,0.0305,95342.0,95341.0,0.2097628]
[1746377911494,0.0305,95342.0,95341.0,0.71531921]
[1746377912107,0.1485,95342.0,95341.0,0.71531921]
[1746377912310,0.1495,95342.0,95341.0,0.71731921]
[1746377913206,0.1495,95342.0,95341.0,0.40731921]
[1746377913504,0.1505,95342.0,95341.0,1.0680454]
[1746377913709,0.1505,95342.0,95341.0,1.0980454]
[1746377914314,0.17216062,95342.0,95341.0,1.0980454]
[1746377915203,0.17216062,95342.0,95341.0,1.09875892]
[1746377916313,0.1505,95342.0,95341.0,1.09875892]
[1746377917401,0.0333,95345.0,95344.0,0.2097562]
[1746377917608,0.0324,95350.0,95346.0,0.0524376]
[1746377917912,0.0324,95350.0,95349.0,0.2097452]
[1746377917913,0.05420092,95350.0,95349.0,0.2097452]
[1746377918215,0.17220092,95350.0,95349.0,0.53594132]
[1746377919006,0.17320092,95350.0,95349.0,0.53594132]
[1746377919803,0.17320092,95350.0,95349.0,0.38594132]
[1746377920411,0.17420092,95350.0,95349.0,0.38694132]
[1746377920610,0.17420092,95350.0,95349.0,0.38994132]
[1746377921110,0.1524,95350.0,95349.0,0.38994132]
[1746377922415,0.17341234,95350.0,95349.0,0.38994132]
[1746377922718,0.1524,95350.0,95349.0,0.38994132]
[1746377923703,0.1524,95350.0,95349.0,0.39001277]
[1746377924215,0.14453366,95350.0,95349.0,0.40552734]
[1746377925622,0.14453366,95350.0,95349.0,0.39001277]
[1746377925915,0.14453366,95350.0,95349.0,0.48001277]
[1746377928518,0.14453366,95350.0,95349.0,0.54441277]
[1746377928718,0.12,95350.0,95349.0,0.54441277]
[1746377928920,0.12,95350.0,95349.0,0.54368194]
[1746377929313,0.1518,95350.0,95349.0,0.54368194]
[1746377929914,0.1518,95350.0,95349.0,0.53368194]
[1746377930121,0.1518,95350.0,95349.0,0.8681452]
[1746377932512,0.1518,95350.0,95349.0,1.2289452]
[1746377939537,0.1518,95350.0,95349.0,0.8466452]
[1746377939823,0.1829,95350.0,95349.0,0.8466452]
[1746377942129,0.1829,95350.0,95349.0,0.7666452]
[1746377942425,0.1829,95350.0,95349.0,0.4658452]
[1746377942618,0.1829,95350.0,95349.0,0.8266452]
[1746377944522,0.1829,95350.0,95349.0,0.7666452]
[1746377944727,0.1829,95350.0,95349.0,0.8166452]
[1746377947533,0.1829,95350.0,95349.0,0.4558452]
[1746377947727,0.1829,95350.0,95349.0,0.8166452]
[1746377951432,0.1829,95350.0,95349.0,0.8816852]
[1746377953035,0.1829,95350.0,95349.0,0.67194]
[1746377953228,0.1829,95350.0,95349.0,0.8816852]
[1746377961741,0.1829,95350.0,95349.0,0.8166452]
[1746377961937,0.1829,95350.0,95349.0,0.8816852]
[1746377963847,0.1518,95350.0,95349.0,0.8816852]
[1746377964142,0.12,95350.0,95349.0,0.9016852]
[1746377966543,0.1532,95350.0,95349.0,0.9016852]
[1746377968242,0.1532,95350.0,95349.0,0.94718349]
[1746377969540,0.1532,95350.0,95349.0,0.9016852]
[1746377982954,0.1532,95350.0,95349.0,0.8366452]
[1746377983159,0.1532,95350.0,95349.0,0.9010452]
[1746377986658,0.184,95350.0,95349.0,0.9010452]
[1746377994370,0.184,95350.0,95349.0,0.94654094]
[1746377995158,0.184,95350.0,95349.0,0.9010452]
[1746377996468,0.1532,95350.0,95349.0,0.9010452]
[1746378002073,0.0015,95360.0,95359.0,0.2097232]
[1746378002368,0.0639,95375.0,95374.0,0.2096902]
[1746378002563,0.0959,95375.0,95374.0,0.3796902]
[1746378003168,0.2139,95375.0,95374.0,0.3796902]
[1746378004269,0.2149,95375.0,95374.0,0.3806902]
[1746378004669,0.2159,95375.0,95374.0,0.3816902]
[1746378006770,0.2159,95375.0,95374.0,0.54188045]
[1746378007265,0.425588,95375.0,95374.0,0.33219025]
[1746378007565,0.425588,95375.0,95374.0,0.37188045]
[1746378007770,0.2159,95375.0,95374.0,0.37188045]
[1746378008269,0.2159,95375.0,95374.0,0.52188045]
[1746378009567,0.2159,95375.0,95374.0,0.3616902]
[1746378029182,0.425588,95375.0,95374.0,0.3616902]
[1746378029382,0.2097012,95370.0,95369.0,0.2097]
[1746378029684,0.5705012,95370.0,95369.0,0.2097]
[1746378029883,0.6326012,95370.0,95369.0,0.36989025]
[1746378030276,0.7506012,95370.0,95369.0,0.36989025]
[1746378030975,0.7516012,95370.0,95369.0,0.37189025]
[1746378031786,0.7526012,95370.0,95369.0,0.37289025]
[1746378033085,0.3918012,95370.0,95369.0,0.37289025]
[1746378034087,0.3918012,95370.0,95369.0,0.2127]
[1746378039985,0.3918012,95370.0,95369.0,0.243]
[1746378045484,0.1821,95370.0,95367.0,0.16019025]
[1746378045690,0.2097166,95362.0,95361.0,0.3470601]
[1746378046078,0.3277166,95362.0,95361.0,0.2946401]
[1746378046493,0.3914166,95362.0,95361.0,0.2946401]
[1746378047093,0.3914166,95362.0,95361.0,0.2976401]
[1746378047390,0.3924166,95362.0,95361.0,0.2976401]
[1746378047793,0.3924166,95362.0,95361.0,0.3307401]
[1746378048684,0.3934166,95362.0,95361.0,0.3307401]
[1746378053689,0.3934166,95362.0,95361.0,0.2976401]
[1746378064612,0.3934166,95362.0,95361.0,0.0355]
[1746378065591,0.3934166,95362.0,95361.0,0.2452188]
[1746378073800,0.3297166,95362.0,95361.0,0.2452188]
[1746378074009,0.3297166,95362.0,95361.0,0.2552188]
[1746378074209,0.12,95362.0,95361.0,0.2852188]
[1746378074800,0.12,95362.0,95361.0,0.36238957]
[1746378075403,0.12,95362.0,95361.0,0.3169188]
[1746378076601,0.0797996,95375.0,95374.0,0.2096902]
[1746378077202,0.0797996,95375.0,95374.0,0.2396902]
[1746378077203,0.1977996,95375.0,95374.0,0.2396902]
[1746378077812,0.1977996,95375.0,95374.0,0.3020902]
[1746378078304,0.1987996,95375.0,95374.0,0.3030902]
[1746378078703,0.1997996,95375.0,95374.0,0.3030902]
[1746378080511,0.12,95375.0,95374.0,0.3030902]
[1746378081607,0.12,95375.0,95374.0,0.0934]
[1746378082509,0.12,95375.0,95374.0,0.3030902]
[1746378084116,0.12,95375.0,95374.0,0.3130902]
[1746378086711,0.1504,95375.0,95374.0,0.3130902]
[1746378086917,0.1819,95375.0,95374.0,0.2830902]
[1746378088003,0.1819,95375.0,95374.0,0.2512902]
[1746378088719,0.1819,95375.0,95374.0,0.2412902]
[1746378090721,0.1819,95375.0,95374.0,0.2612902]
[1746378092820,0.12,95375.0,95374.0,0.2612902]
[1746378093017,0.06585306,95401.0,95387.0,0.2096616]
[1746378093225,0.0333,95391.0,95387.0,0.2596616]
[1746378093520,0.37697659,95388.0,95387.0,0.2296616]
[1746378094119,0.49497659,95388.0,95387.0,0.2296616]
[1746378094414,0.55747659,95388.0,95387.0,0.2296616]
[1746378094630,0.55747659,95388.0,95387.0,0.2306616]
[1746378094631,0.56047659,95388.0,95387.0,0.2306616]
[1746378096110,0.56347659,95388.0,95387.0,0.2306616]
[1746378098917,0.56347659,95388.0,95387.0,0.2806616]
[1746378108825,0.56347659,95388.0,95387.0,0.2306616]
[1746378110632,0.56347659,95388.0,95387.0,0.2406616]
[1746378113730,0.56347659,95388.0,95387.0,0.2721616]
[1746378117446,0.20267659,95388.0,95387.0,0.2721616]
[1746378124957,0.20267659,95388.0,95387.0,0.3022616]
[1746378128559,0.20267659,95388.0,95387.0,0.2721616]
[1746378135161,0.20267659,95388.0,95387.0,0.2621616]
[1746378157387,0.20267659,95388.0,95387.0,0.2921616]
[1746378158590,0.124,95388.0,95387.0,0.2921616]
[1746378158978,0.124,95388.0,95387.0,0.3222616]
[1746378159587,0.124,95388.0,95387.0,0.7822616]
[1746378162092,0.124,95388.0,95387.0,0.3222616]
[1746378162392,0.124,95388.0,95387.0,0.7822616]
[1746378169797,0.124,95388.0,95387.0,0.94259137]
[1746378174093,0.124,95388.0,95387.0,0.7822616]
[1746378180909,0.1885,95388.0,95387.0,0.7822616]
[1746378185004,0.1885,95388.0,95387.0,0.94259137]
[1746378188196,0.3981594,95388.0,95387.0,0.94259137]
[1746378194510,0.1885,95388.0,95387.0,0.94259137]
[1746378196099,0.1885,95388.0,95387.0,0.7822616]
[1746378197002,0.7589594,95388.0,95387.0,0.0525]
[1746378197313,0.2096682,95384.0,95383.0,0.05241]
[1746378197705,0.2096748,95381.0,95380.0,0.213587]
[1746378198108,0.2096748,95381.0,95380.0,0.423264]
[1746378198308,0.3276748,95381.0,95380.0,0.423264]
[1746378199308,0.3266748,95381.0,95380.0,0.423264]
[1746378199509,0.3286748,95381.0,95380.0,0.423264]
[1746378199904,0.3306748,95381.0,95380.0,0.424264]
[1746378200315,0.3306748,95381.0,95380.0,0.210677]
[1746378202916,0.3306748,95381.0,95380.0,0.340677]
[1746378203111,0.122,95381.0,95380.0,0.340677]
[1746378203310,0.1585804,95402.0,95384.0,0.0524165]
[1746378203615,0.031,95389.0,95388.0,0.2096594]
[1746378203818,0.031,95389.0,95388.0,0.7708594]
[1746378204012,0.031,95389.0,95388.0,0.8022594]
[1746378204207,0.118,95389.0,95388.0,0.8922594]
[1746378204512,0.118,95389.0,95388.0,1.2622594]
[1746378206118,0.124,95389.0,95388.0,1.2642594]
[1746378207015,0.124,95389.0,95388.0,1.3283794]
[1746378207812,0.124,95389.0,95388.0,1.48871635]
[1746378212218,0.124,95389.0,95388.0,1.3283794]
[1746378216530,0.124,95389.0,95388.0,1.48871635]
[1746378218435,0.01393091,95398.0,95394.0,0.2096463]
[1746378218627,0.0323,95402.0,95394.0,0.8696463]
[1746378219132,0.1195,95395.0,95394.0,0.9331463]
[1746378219516,0.1245,95395.0,95394.0,0.9341463]
[1746378220631,0.1235,95395.0,95394.0,0.9341463]
[1746378220829,0.1265,95395.0,95394.0,0.9351463]
[1746378221533,0.1235,95395.0,95394.0,0.9341463]
[1746378221834,0.1265,95395.0,95394.0,0.9351463]
[1746378227633,0.1265,95395.0,95394.0,0.9036463]
[1746378230630,0.0332,95404.0,95403.0,0.2096265]
[1746378230835,0.0332,95404.0,95403.0,0.4996265]
[1746378231134,0.1512,95404.0,95403.0,0.9296265]
[1746378231831,0.16537637,95404.0,95403.0,0.9306265]
[1746378232027,0.20037637,95404.0,95403.0,0.9306265]
[1746378232533,0.20437637,95404.0,95403.0,0.4716265]
[1746378232727,0.20437637,95404.0,95403.0,0.5016265]
[1746378233129,0.20437637,95404.0,95403.0,0.9316265]
[1746378233630,0.20437637,95404.0,95403.0,0.4916265]
[1746378233830,0.20437637,95404.0,95403.0,0.3916265]
[1746378238734,0.1902,95404.0,95403.0,0.3916265]
[1746378239046,0.157,95404.0,95403.0,0.4016265]
[1746378239527,0.157,95404.0,95403.0,0.4657265]
[1746378240642,0.127,95404.0,95403.0,0.4657265]
[1746378242638,0.127,95404.0,95403.0,0.4016265]
[1746378242847,0.127,95404.0,95403.0,0.4656665]
[1746378243241,0.1907,95404.0,95403.0,0.4656665]
[1746378243440,0.1907,95404.0,95403.0,0.4556665]
[1746378243945,0.1907,95404.0,95403.0,0.4656665]
[1746378245549,0.1907,95404.0,95403.0,0.5056665]
[1746378246845,0.1907,95404.0,95403.0,0.4416265]
[1746378247041,0.1907,95404.0,95403.0,0.5687665]
[1746378247845,0.1907,95404.0,95403.0,0.35914]
[1746378248645,0.1907,95404.0,95403.0,0.5687665]
[1746378256951,0.1907,95404.0,95403.0,0.72910345]
[1746378261256,0.1907,95404.0,95403.0,0.5687665]
[1746378262054,0.127,95404.0,95403.0,0.5687665]
[1746378262952,0.127,95404.0,95403.0,0.5687265]
[1746378263775,0.1906,95404.0,95403.0,0.5687265]
[1746378264369,0.1906,95404.0,95403.0,0.5056265]
[1746378265576,0.1906,95404.0,95403.0,0.4656265]
[1746378267073,0.1906,95404.0,95403.0,0.5056265]
[1746378269579,0.1906,95404.0,95403.0,0.5379265]
[1746378276778,0.127,95404.0,95403.0,0.5379265]
[1746378276978,0.0931706,95404.0,95403.0,0.5697265]
[1746378277282,0.0931706,95404.0,95403.0,0.9897265]
[1746378278679,0.0931706,95404.0,95403.0,1.00400831]
[1746378279483,0.0632,95414.0,95410.0,0.0524027]
[1746378279781,0.0632,95414.0,95413.0,0.5704045]
[1746378279982,0.0632,95414.0,95413.0,0.8404045]
[1746378280181,0.1812,95414.0,95413.0,0.8404045]
[1746378280990,0.1852,95414.0,95413.0,0.8404045]
[1746378281588,0.1892,95414.0,95413.0,0.8414045]
[1746378281980,0.1902,95414.0,95413.0,0.8424045]
[1746378282384,0.1882,95414.0,95413.0,0.8414045]
[1746378282688,0.1852,95414.0,95413.0,0.8404045]
[1746378284587,0.1832,95414.0,95413.0,0.8404045]
[1746378284793,0.1822,95414.0,95413.0,0.8404045]
[1746378284992,0.1832,95414.0,95413.0,0.8404045]
[1746378285292,0.1832,95414.0,95413.0,0.8709045]
[1746378288593,0.1822,95414.0,95413.0,0.8709045]
[1746378288887,0.3608,95427.0,95426.0,0.209576]
[1746378289189,0.4788,95427.0,95426.0,0.269576]
[1746378289388,0.118,95427.0,95426.0,0.630376]
[1746378289703,0.118,95427.0,95426.0,0.650376]
[1746378290094,0.118,95427.0,95426.0,0.715476]
[1746378290896,0.119,95427.0,95426.0,0.715476]
[1746378291494,0.119,95427.0,95426.0,0.695476]
[1746378291691,0.0626,95435.0,95434.0,0.2095584]
[1746378291995,0.0626,95435.0,95434.0,0.4595584]
[1746378292195,0.1806,95435.0,95434.0,0.4595584]
[1746378292694,0.17274085,95435.0,95434.0,0.47502379]
[1746378293396,0.17474085,95435.0,95434.0,0.47502379]
[1746378293591,0.17474085,95435.0,95434.0,0.4595584]
[1746378293996,0.17774085,95435.0,95434.0,0.4595584]
[1746378296490,0.17774085,95435.0,95434.0,0.4921584]
[1746378299296,0.21054085,95435.0,95434.0,0.4921584]
[1746378300392,0.21054085,95435.0,95434.0,0.4595584]
[1746378302608,0.21054085,95435.0,95434.0,0.4495584]
[1746378303704,0.21054085,95435.0,95434.0,0.4395584]
[1746378303909,0.21054085,95435.0,95434.0,0.4495584]
[1746378305002,0.21054085,95435.0,95434.0,0.4395584]
[1746378305208,0.21054085,95435.0,95434.0,0.3595584]
[1746378305408,0.21054085,95435.0,95434.0,0.3995584]
[1746378305616,0.21054085,95435.0,95434.0,0.4235184]
[1746378308013,0.21054085,95435.0,95434.0,0.3595584]
[1746378308306,0.21054085,95435.0,95434.0,0.4235184]
[1746378308702,0.21054085,95435.0,95434.0,0.3595584]
[1746378308907,0.21054085,95435.0,95434.0,0.2095584]
[1746378308908,0.31532486,95435.0,95434.0,0.2095584]
[1746378309106,0.52488106,95435.0,95434.0,0.2095584]
[1746378309310,0.52488106,95435.0,95434.0,0.3495584]
[1746378309804,0.2095628,95432.0,95431.0,0.209565]
[1746378310200,0.3143508,95432.0,95431.0,0.209565]
[1746378311105,0.3275628,95432.0,95431.0,0.209565]
[1746378311405,0.3295628,95432.0,95431.0,0.209565]
[1746378312111,0.3315628,95432.0,95431.0,0.209565]
[1746378323120,0.3627628,95432.0,95431.0,0.209565]
[1746378323822,0.4127628,95432.0,95431.0,0.209565]
[1746378333324,0.2032,95432.0,95431.0,0.239565]
[1746378333633,0.209565,95431.0,95430.0,0.0306]
[1746378333823,0.309565,95431.0,95430.0,0.0306]
[1746378334023,0.341565,95431.0,95430.0,0.0306]
[1746378334223,0.459565,95431.0,95430.0,0.0306]
[1746378334633,0.459565,95431.0,95430.0,0.2401662]
[1746378335525,0.460565,95431.0,95430.0,0.2401662]
[1746378335833,0.493765,95431.0,95430.0,0.2401662]
[1746378336332,0.495765,95431.0,95430.0,0.2401662]
[1746378336626,0.495765,95431.0,95430.0,0.0306]
[1746378336926,0.2095716,95428.0,95427.0,0.2252838]
[1746378337127,0.8183716,95428.0,95427.0,0.2252838]
[1746378337321,0.2095825,95423.0,95411.0,0.0524021]
[1746378337521,0.4095825,95423.0,95419.0,0.209591]
[1746378337732,0.2095913,95419.0,95418.0,0.0301]
[1746378337926,0.1938735,95418.0,95417.0,0.16015007]
[1746378338123,0.58577751,95418.0,95417.0,0.16015007]
[1746378338318,0.2096001,95415.0,95414.0,0.00157182]
[1746378338519,0.7904001,95415.0,95414.0,0.00157182]
[1746378338724,0.89520411,95415.0,95414.0,0.00157182]
[1746378339334,1.01320411,95415.0,95414.0,0.00157182]
[1746378339632,0.2096045,95413.0,95412.0,0.00157212]
[1746378339832,0.4296045,95413.0,95412.0,0.00157212]
[1746378340132,0.6514125,95413.0,95412.0,0.00157212]
[1746378340334,0.7143125,95413.0,95412.0,0.00157212]
[1746378340719,0.7123125,95413.0,95412.0,0.00157212]
[1746378341125,0.7123125,95413.0,95412.0,0.00357212]
[1746378341535,0.7153125,95413.0,95412.0,0.00357212]
[1746378343036,0.7193125,95413.0,95412.0,0.00157212]
[1746378343547,0.7163125,95413.0,95412.0,0.00157212]
[1746378343843,0.7213125,95413.0,95412.0,0.00257212]
[1746378344247,0.7173125,95413.0,95412.0,0.00257212]
[1746378344438,0.7223125,95413.0,95412.0,0.00357212]
[1746378345749,0.6175045,95413.0,95412.0,0.00357212]
[1746378345946,0.7223125,95413.0,95412.0,0.00357212]
[1746378352138,0.6175045,95413.0,95412.0,0.00357212]
[1746378353648,0.4109,95413.0,95406.0,0.03668]
[1746378353843,0.5704177,95407.0,95406.0,0.03668]
[1746378354041,0.7604177,95407.0,95406.0,0.03668]
[1746378354241,0.2096309,95401.0,95400.0,0.2096326]
[1746378354442,0.3296309,95401.0,95400.0,0.2096326]
[1746378355142,0.4795309,95401.0,95400.0,0.2428326]
[1746378356048,0.4914582,95401.0,95400.0,0.2428326]
[1746378357739,0.4914582,95401.0,95400.0,0.0332]
[1746378358140,0.50531096,95401.0,95400.0,0.0332]
[1746378358344,0.50531096,95401.0,95400.0,0.0636]
[1746378358751,0.50531096,95401.0,95400.0,0.2732331]
[1746378360842,0.47341096,95401.0,95400.0,0.2732331]
[1746378371051,0.83421096,95401.0,95400.0,0.2732331]
[1746378373363,0.47341096,95401.0,95400.0,0.2732331]
[1746378373555,0.83421096,95401.0,95400.0,0.2732331]
[1746378377865,0.47341096,95401.0,95400.0,0.2732331]
[1746378378161,0.71421096,95401.0,95400.0,0.3432331]
[1746378378361,0.76421096,95401.0,95400.0,0.2732331]
[1746378381664,0.79671096,95401.0,95400.0,0.2732331]
[1746378386667,0.79671096,95401.0,95400.0,0.08988578]
[1746378391671,0.58708006,95401.0,95400.0,0.14988578]
[1746378391976,0.58708006,95401.0,95400.0,0.08988578]
[1746378392274,0.82791096,95401.0,95400.0,0.08988578]
[1746378400274,0.82791096,95401.0,95400.0,0.12168578]
[1746378411688,0.82791096,95401.0,95400.0,0.08988578]
[1746378415390,0.122,95401.0,95400.0,0.68550578]
[1746378415689,0.122,95401.0,95400.0,1.45990578]
[1746378415877,0.122,95401.0,95400.0,1.20990578]
[1746378416083,0.004,95401.0,95400.0,1.32790578]
[1746378417091,0.004,95401.0,95400.0,1.20990578]
[1746378418191,0.004,95401.0,95400.0,1.67505271]
[1746378418586,0.3608,95435.0,95418.0,0.2095935]
[1746378418786,0.01408281,95420.0,95418.0,0.3795935]
[1746378418988,0.01408281,95420.0,95418.0,0.39548784]
[1746378419792,0.07793875,95419.0,95418.0,0.41225958]
[1746378420186,0.19593875,95419.0,95418.0,0.41225958]
[1746378420393,0.20093875,95419.0,95418.0,0.44325958]
[1746378420784,0.20093875,95419.0,95418.0,0.50605958]
[1746378421196,0.08293875,95419.0,95418.0,0.50605958]
[1746378421889,0.006,95419.0,95418.0,0.50505958]
[1746378422091,0.008,95419.0,95418.0,0.50505958]
[1746378422593,0.002,95419.0,95418.0,0.50405958]
[1746378422793,0.004,95419.0,95418.0,0.50405958]
[1746378425094,0.004,95419.0,95418.0,0.44305958]
[1746378425393,0.054,95419.0,95418.0,0.24125958]
[1746378425595,0.2635913,95419.0,95418.0,0.24125958]
[1746378425987,0.2635913,95419.0,95418.0,0.22536524]
[1746378426187,0.3795913,95419.0,95418.0,0.22536524]
[1746378426385,0.3815913,95419.0,95418.0,0.22536524]
[1746378426894,0.3815913,95419.0,95418.0,0.24077078]
[1746378427080,0.9933913,95419.0,95418.0,0.24077078]
[1746378427279,0.2096001,95415.0,95414.0,0.0524]
[1746378427485,0.6604001,95415.0,95414.0,0.2096023]
[1746378428190,0.6884001,95415.0,95414.0,0.2396023]
[1746378428389,0.7184001,95415.0,95414.0,0.2196023]
[1746378428694,0.7204001,95415.0,95414.0,0.2096023]
[1746378429295,0.7224001,95415.0,95414.0,0.2096023]
[1746378429895,0.3616001,95415.0,95414.0,0.2096023]
[1746378430096,0.7224001,95415.0,95414.0,0.2096023]
[1746378430687,0.122,95415.0,95414.0,0.4496023]
[1746378430887,0.122,95415.0,95414.0,0.9009023]
[1746378431286,0.02813889,95418.0,95417.0,0.2095957]
[1746378431488,0.02813889,95418.0,95417.0,0.5595957]
[1746378432099,0.14613889,95418.0,95417.0,0.5595957]
[1746378432596,0.14613889,95418.0,95417.0,0.5899957]
[1746378432799,0.14913889,95418.0,95417.0,0.5899957]
[1746378433998,0.15113889,95418.0,95417.0,0.5899957]
[1746378435900,0.15113889,95418.0,95417.0,0.5199957]
[1746378436090,0.005,95418.0,95417.0,0.9799957]
[1746378436698,0.005,95418.0,95417.0,0.5699957]
[1746378436885,0.005,95418.0,95417.0,0.9799957]
[1746378437090,0.003,95418.0,95417.0,0.9799957]
[1746378437501,0.003,95418.0,95417.0,0.5799957]
[1746378438298,0.004,95418.0,95417.0,0.5799957]
[1746378438598,0.001,95418.0,95417.0,0.5799957]
[1746378439390,0.001,95418.0,95417.0,0.59573281]
[1746378441200,0.119,95418.0,95417.0,0.59573281]
[1746378441594,0.11113952,95418.0,95417.0,0.59573281]
[1746378441991,0.11113952,95418.0,95417.0,0.53573281]
[1746378442495,0.11113952,95418.0,95417.0,0.59573281]
[1746378442701,0.11113952,95418.0,95417.0,0.99573281]
[1746378444199,0.11113952,95418.0,95417.0,0.58573281]
[1746378444701,0.11113952,95418.0,95417.0,0.99573281]
[1746378446303,0.11113952,95418.0,95417.0,0.59573281]
[1746378446703,0.11113952,95418.0,95417.0,0.99573281]
[1746378447702,0.11113952,95418.0,95417.0,0.96533281]
[1746378447902,0.0316,95423.0,95422.0,0.2095847]
[1746378448097,0.0316,95423.0,95422.0,0.93532181]
[1746378448504,0.0316,95423.0,95422.0,0.99882181]
[1746378449205,0.1506,95423.0,95422.0,0.99882181]
[1746378449605,0.1506,95423.0,95422.0,0.9830847]
[1746378449801,0.1506,95423.0,95422.0,0.99876572]
[1746378450906,0.1496,95423.0,95422.0,0.99876572]
[1746378451807,0.118,95423.0,95422.0,0.99876572]
[1746378455012,0.118,95423.0,95422.0,1.10356172]
[1746378455404,0.0315,95429.0,95428.0,0.2095716]
[1746378455608,0.0315,95429.0,95428.0,0.8895716]
[1746378455904,0.0015,95430.0,95429.0,0.2095694]
[1746378456103,0.1195,95430.0,95429.0,0.9657694]
[1746378456302,0.1195,95430.0,95429.0,0.98145042]
[1746378456607,0.1517,95430.0,95429.0,0.98145042]
[1746378457510,0.1517,95430.0,95429.0,0.98245042]
[1746378458613,0.1517,95430.0,95429.0,0.98345042]
[1746378459911,0.1517,95430.0,95429.0,0.98245042]
[1746378460105,0.1517,95430.0,95429.0,0.98345042]
[1746378461807,0.1517,95430.0,95429.0,0.95045042]
[1746378463314,0.14384038,95430.0,95429.0,0.95045042]
[1746378464715,0.17684038,95430.0,95429.0,0.95045042]
[1746378471222,0.17684038,95430.0,95429.0,0.9347694]
[1746378478723,0.14384038,95430.0,95429.0,0.9347694]
[1746378479023,0.0315,95435.0,95434.0,0.2095584]
[1746378479220,0.0315,95435.0,95434.0,0.9645584]
[1746378480026,0.29733118,95451.0,95450.0,0.2095233]
[1746378480226,0.29733118,95451.0,95450.0,0.2195233]
[1746378481213,0.46094812,95451.0,95450.0,0.2195233]
[1746378482025,0.52854812,95451.0,95450.0,0.2195233]
[1746378482229,0.53254812,95451.0,95450.0,0.2195233]
[1746378482720,0.52454812,95451.0,95450.0,0.2195233]
[1746378482920,0.53054812,95451.0,95450.0,0.2195233]
[1746378498639,0.74006922,95451.0,95450.0,0.2195233]
[1746378499530,0.53054812,95451.0,95450.0,0.2195233]
[1746378502839,0.74006922,95451.0,95450.0,0.2195233]
[1746378505635,0.53054812,95451.0,95450.0,0.2195233]
[1746378508541,0.53054812,95451.0,95450.0,0.2819233]
[1746378513841,0.13701694,95451.0,95450.0,0.2819233]
[1746378514042,0.3608,95454.0,95453.0,0.2095167]
[1746378514236,0.3608,95454.0,95453.0,0.3595167]
[1746378514841,0.3608,95454.0,95453.0,0.4211167]
[1746378515238,0.4828,95454.0,95453.0,0.4211167]
[1746378515938,0.49625471,95454.0,95453.0,0.4211167]
[1746378516145,0.49925471,95454.0,95453.0,0.4211167]
[1746378517245,0.13845471,95454.0,95453.0,0.4211167]
[1746378518346,0.16975471,95454.0,95453.0,0.4211167]
[1746378527555,0.13845471,95454.0,95453.0,0.4211167]
[1746378528959,0.13845471,95454.0,95453.0,0.2116]
[1746378529258,0.13845471,95454.0,95453.0,0.4211167]
[1746378530351,0.13845471,95454.0,95453.0,0.4311167]
[1746378530560,0.00157201,95461.0,95460.0,0.2095013]
[1746378530754,0.00157201,95461.0,95460.0,0.2195013]
[1746378531148,0.11957201,95461.0,95460.0,0.2195013]
[1746378531349,0.11957201,95461.0,95460.0,0.2831013]
[1746378531855,0.12357201,95461.0,95460.0,0.2831013]
[1746378532055,0.12657201,95461.0,95460.0,0.2831013]
[1746378532751,0.13906598,95461.0,95460.0,0.2831013]
[1746378539355,0.13906598,95461.0,95460.0,0.2931013]
[1746378541660,0.13906598,95461.0,95460.0,0.2295013]
[1746378541861,0.34856508,95461.0,95460.0,0.2195013]
[1746378542054,0.34856508,95461.0,95460.0,0.2095013]
[1746378544768,0.13906598,95461.0,95460.0,0.2095013]
[1746378545268,0.20296598,95461.0,95460.0,0.2095013]
[1746378545467,0.41246508,95461.0,95460.0,0.2095013]
[1746378547263,0.41246508,95461.0,95460.0,0.2195013]
[1746378558272,0.41246508,95461.0,95460.0,0.2095013]
[1746378558473,0.44246508,95461.0,95460.0,0.2095013]
[1746378565674,0.44246508,95461.0,95460.0,0.2411013]
[1746378567487,0.44246508,95461.0,95460.0,0.2095013]
[1746378576587,0.52241888,95461.0,95460.0,0.2095013]
[1746378579491,0.52084687,95461.0,95460.0,0.2095013]
[1746378580591,0.44089307,95461.0,95460.0,0.2095013]
[1746378582386,0.80169307,95461.0,95460.0,0.2095013]
[1746378587796,0.88163878,95461.0,95460.0,0.2095013]
[1746378589187,0.85023878,95461.0,95460.0,0.2095013]
[1746378589389,0.85023878,95461.0,95460.0,0.2727013]
[1746378589683,0.60823968,95461.0,95460.0,0.2727013]
[1746378589882,0.21743968,95461.0,95460.0,0.2927013]
[1746378590087,0.21743968,95461.0,95460.0,0.3027013]
[1746378592197,0.13749397,95461.0,95460.0,0.3027013]
[1746378595301,0.13749397,95461.0,95460.0,0.3127013]